[Event "Early-Titled-Tuesday-Blitz-March-12-2024"]
[Site "Chess.com"]
[Date "2024.03.12"]
[Round "1"]
[White "volodja49"]
[Black "shirovin"]
[Result "1-0"]
[WhiteElo "2595"]
[BlackElo "2069"]
[TimeControl "180+1"]
[EndTime "8:01:32 PDT"]
[Termination "volodja49 won by resignation"]

1. d4 {[%clk 0:02:58.8]} 1... Nf6 {[%clk 0:02:59.2]} 2. c4 {[%clk 0:02:59.4]}
2... g6 {[%clk 0:02:59.5]} 3. Nc3 {[%clk 0:02:59.8]} 3... d5 {[%clk 0:02:58.8]}
4. cxd5 {[%clk 0:02:59.6]} 4... Nxd5 {[%clk 0:02:59.4]} 5. e4 {[%clk 0:03:00.2]}
5... Nxc3 {[%clk 0:02:59.5]} 6. bxc3 {[%clk 0:02:59.7]} 6... Bg7 {[%clk
0:03:00]} 7. Be3 {[%clk 0:02:59.9]} 7... c5 {[%clk 0:02:59.7]} 8. Qd2 {[%clk
0:03:00.1]} 8... Qa5 {[%clk 0:02:56.6]} 9. Rc1 {[%clk 0:02:58.3]} 9... Nd7
{[%clk 0:02:50.9]} 10. d5 {[%clk 0:02:52.2]} 10... O-O {[%clk 0:02:46.1]} 11.
Nf3 {[%clk 0:02:50.4]} 11... f5 {[%clk 0:02:25.6]} 12. c4 {[%clk 0:02:48.9]}
12... fxe4 {[%clk 0:02:19.8]} 13. Qxa5 {[%clk 0:02:47]} 1-0

[Event "Early-Titled-Tuesday-Blitz-March-12-2024"]
[Site "Chess.com"]
[Date "2024.03.12"]
[Round "1"]
[White "Bkmzzzzz"]
[Black "Defend1r"]
[Result "0-1"]
[WhiteElo "2391"]
[BlackElo "2732"]
[TimeControl "180+1"]
[EndTime "8:02:05 PDT"]
[Termination "Defend1r won by resignation"]

1. e4 {[%clk 0:02:59.3]} 1... c5 {[%clk 0:02:59.5]} 2. Nf3 {[%clk 0:02:59.3]}
2... d6 {[%clk 0:02:58.8]} 3. d4 {[%clk 0:02:59.2]} 3... cxd4 {[%clk 0:02:59]}
4. Qxd4 {[%clk 0:03:00.1]} 4... a6 {[%clk 0:02:50.1]} 5. Be3 {[%clk 0:02:58.7]}
5... Nf6 {[%clk 0:02:38.6]} 6. Nc3 {[%clk 0:02:57.1]} 6... Nc6 {[%clk
0:02:37.3]} 7. Qb6 {[%clk 0:02:56.5]} 7... Bg4 {[%clk 0:02:30.2]} 8. Nd2 {[%clk
0:02:46.9]} 8... Qc8 {[%clk 0:02:25.3]} 9. f3 {[%clk 0:02:44.6]} 9... Be6 {[%clk
0:02:22.2]} 10. O-O-O {[%clk 0:02:44.3]} 10... Nd7 {[%clk 0:02:22.2]} 0-1

[Event "Early-Titled-Tuesday-Blitz-March-12-2024"]
[Site "Chess.com"]
[Date "2024.03.12"]
[Round "1"]
[White "Nitzan_Steinberg"]
[Black "VD_coach"]
[Result "1-0"]
[WhiteElo "2907"]
[BlackElo "2513"]
[TimeControl "180+1"]
[EndTime "8:03:07 PDT"]
[Termination "Nitzan_Steinberg won by resignation"]

1. Nf3 {[%clk 0:03:00.9]} 1... Nf6 {[%clk 0:02:59.3]} 2. g3 {[%clk 0:03:01.1]}
2... g6 {[%clk 0:02:55.1]} 3. Bg2 {[%clk 0:03:01.3]} 3... Bg7 {[%clk 0:02:53.9]}
4. d4 {[%clk 0:03:01.7]} 4... d5 {[%clk 0:02:45.8]} 5. c4 {[%clk 0:03:02]} 5...
c6 {[%clk 0:02:36.9]} 6. cxd5 {[%clk 0:02:59.6]} 6... cxd5 {[%clk 0:02:36.1]} 7.
Nc3 {[%clk 0:02:59.9]} 7... O-O {[%clk 0:02:35.5]} 8. O-O {[%clk 0:03:00.6]}
8... Nc6 {[%clk 0:02:19.8]} 9. Ne5 {[%clk 0:03:00.1]} 9... e6 {[%clk 0:02:17.6]}
10. f4 {[%clk 0:02:54.4]} 10... Nd7 {[%clk 0:02:12.5]} 11. Be3 {[%clk 0:02:54]}
11... Nb6 {[%clk 0:02:11]} 12. b3 {[%clk 0:02:52.3]} 12... Bd7 {[%clk
0:02:09.3]} 13. Rc1 {[%clk 0:02:48.4]} 13... Rc8 {[%clk 0:02:07.2]} 14. Bf2
{[%clk 0:02:46.2]} 14... Ne7 {[%clk 0:02:05.6]} 15. g4 {[%clk 0:02:43.3]} 15...
f6 {[%clk 0:02:00.3]} 16. Nd3 {[%clk 0:02:43.1]} 16... Rc7 {[%clk 0:01:39.3]}
17. Nc5 {[%clk 0:02:40.1]} 17... Bc8 {[%clk 0:01:33.7]} 18. Nb5 {[%clk
0:02:35.2]} 1-0

[Event "Early-Titled-Tuesday-Blitz-March-12-2024"]
[Site "Chess.com"]
[Date "2024.03.12"]
[Round "1"]
[White "FormerProdigy"]
[Black "DIMONBANAN"]
[Result "1-0"]
[WhiteElo "2975"]
[BlackElo "2532"]
[TimeControl "180+1"]
[EndTime "8:03:36 PDT"]
[Termination "FormerProdigy won by resignation"]

1. e4 {[%clk 0:03:00.9]} 1... e5 {[%clk 0:02:59.6]} 2. Nf3 {[%clk 0:03:01.3]}
2... Nc6 {[%clk 0:02:59.7]} 3. Bb5 {[%clk 0:03:01.6]} 3... Nf6 {[%clk
0:02:59.8]} 4. d3 {[%clk 0:03:01.9]} 4... Ne7 {[%clk 0:02:59.7]} 5. Nc3 {[%clk
0:03:00.4]} 5... c6 {[%clk 0:03:00.2]} 6. Bc4 {[%clk 0:02:58.1]} 6... Ng6 {[%clk
0:03:00.2]} 7. h4 {[%clk 0:02:58.4]} 7... h5 {[%clk 0:02:59.7]} 8. d4 {[%clk
0:02:49]} 8... exd4 {[%clk 0:02:44.7]} 9. Qxd4 {[%clk 0:02:49.9]} 9... Qb6
{[%clk 0:02:33.7]} 10. Qd3 {[%clk 0:02:49.2]} 10... Bb4 {[%clk 0:02:27.7]} 11.
O-O {[%clk 0:02:20.8]} 11... Ng4 {[%clk 0:01:59.3]} 12. e5 {[%clk 0:02:12.6]}
12... Ne7 {[%clk 0:01:24.4]} 13. Ne4 {[%clk 0:02:08.2]} 13... O-O {[%clk
0:01:19.3]} 14. a3 {[%clk 0:02:00.8]} 14... Bc5 {[%clk 0:01:16.2]} 15. b4 {[%clk
0:02:01.4]} 15... Bxb4 {[%clk 0:01:06.9]} 16. axb4 {[%clk 0:02:01.3]} 1-0

[Event "Early-Titled-Tuesday-Blitz-March-12-2024"]
[Site "Chess.com"]
[Date "2024.03.12"]
[Round "1"]
[White "StankovicIvan"]
[Black "yosephtaher"]
[Result "0-1"]
[WhiteElo "2521"]
[BlackElo "2915"]
[TimeControl "180+1"]
[EndTime "8:03:43 PDT"]
[Termination "yosephtaher won by checkmate"]

1. e4 {[%clk 0:02:55.4]} 1... c5 {[%clk 0:02:58.1]} 2. c4 {[%clk 0:02:55.5]}
2... g6 {[%clk 0:02:57.7]} 3. Nc3 {[%clk 0:02:56.4]} 3... Bg7 {[%clk 0:02:58.3]}
4. g3 {[%clk 0:02:57.1]} 4... Nc6 {[%clk 0:02:59]} 5. Bg2 {[%clk 0:02:57.7]}
5... e6 {[%clk 0:02:59.7]} 6. Nge2 {[%clk 0:02:58]} 6... Nge7 {[%clk 0:03:00.4]}
7. d3 {[%clk 0:02:58.7]} 7... h5 {[%clk 0:02:59.6]} 8. h3 {[%clk 0:02:57.8]}
8... d6 {[%clk 0:03:00]} 9. Be3 {[%clk 0:02:57.4]} 9... Nd4 {[%clk 0:03:00.5]}
10. O-O {[%clk 0:02:57.4]} 10... Nec6 {[%clk 0:03:00.8]} 11. Rb1 {[%clk
0:02:57.2]} 11... e5 {[%clk 0:03:01]} 12. a3 {[%clk 0:02:48]} 12... Be6 {[%clk
0:03:00.8]} 13. Nd5 {[%clk 0:02:35.2]} 13... Qd7 {[%clk 0:03:00.4]} 14. Kh2
{[%clk 0:02:30.8]} 14... f5 {[%clk 0:03:00.2]} 15. Nxd4 {[%clk 0:02:23.9]} 15...
cxd4 {[%clk 0:02:56.9]} 16. Bg5 {[%clk 0:01:54]} 16... h4 {[%clk 0:02:55.9]} 17.
gxh4 {[%clk 0:01:45.7]} 17... f4 {[%clk 0:02:54.5]} 18. b4 {[%clk 0:01:35.8]}
18... Rc8 {[%clk 0:02:44.3]} 19. Nf6+ {[%clk 0:01:28.9]} 19... Bxf6 {[%clk
0:02:42.9]} 20. Bxf6 {[%clk 0:01:29.8]} 20... Rh5 {[%clk 0:02:43.5]} 21. Bg5
{[%clk 0:01:28.4]} 21... Qh7 {[%clk 0:02:42.5]} 22. Bf3 {[%clk 0:01:24.9]} 22...
Rxg5 {[%clk 0:02:42]} 23. hxg5 {[%clk 0:01:22.5]} 23... Qxh3+ {[%clk 0:02:42.7]}
24. Kg1 {[%clk 0:01:22.8]} 24... Kf7 {[%clk 0:02:39.4]} 25. Re1 {[%clk
0:01:20.4]} 25... Rh8 {[%clk 0:02:38.1]} 26. Bg2 {[%clk 0:01:16.4]} 26... Qh4
{[%clk 0:02:38.4]} 27. f3 {[%clk 0:01:12.2]} 27... Qh2+ {[%clk 0:02:38]} 28. Kf2
{[%clk 0:01:11.8]} 28... Qg3+ {[%clk 0:02:37.2]} 29. Kf1 {[%clk 0:01:12]} 29...
Rh2 {[%clk 0:02:35.7]} 30. Re2 {[%clk 0:01:08.6]} 30... Bh3 {[%clk 0:02:34.7]}
31. Qc2 {[%clk 0:01:05.2]} 31... Rh1# {[%clk 0:02:34.3]} 0-1

[Event "Early-Titled-Tuesday-Blitz-March-12-2024"]
[Site "Chess.com"]
[Date "2024.03.12"]
[Round "1"]
[White "Superfelix"]
[Black "KSho99"]
[Result "1-0"]
[WhiteElo "2599"]
[BlackElo "2133"]
[TimeControl "180+1"]
[EndTime "8:04:02 PDT"]
[Termination "Superfelix won by resignation"]

1. e4 {[%clk 0:03:00.9]} 1... e6 {[%clk 0:03:00]} 2. d4 {[%clk 0:03:00.4]} 2...
d5 {[%clk 0:03:00.1]} 3. Bd3 {[%clk 0:03:01]} 3... dxe4 {[%clk 0:02:59.2]} 4.
Bxe4 {[%clk 0:03:01.9]} 4... Nf6 {[%clk 0:02:59.3]} 5. Bf3 {[%clk 0:03:01.9]}
5... Bd6 {[%clk 0:02:58.3]} 6. Ne2 {[%clk 0:03:02.2]} 6... O-O {[%clk
0:02:58.3]} 7. c4 {[%clk 0:03:02.8]} 7... Nbd7 {[%clk 0:02:50.8]} 8. Nbc3 {[%clk
0:02:59.1]} 8... e5 {[%clk 0:02:47.3]} 9. O-O {[%clk 0:02:55.7]} 9... exd4
{[%clk 0:02:42.3]} 10. Nxd4 {[%clk 0:02:56.6]} 10... Ne5 {[%clk 0:02:38.2]} 11.
Be2 {[%clk 0:02:45.5]} 11... c6 {[%clk 0:02:24]} 12. h3 {[%clk 0:02:43.1]} 12...
Qc7 {[%clk 0:01:49.9]} 13. Bg5 {[%clk 0:02:42]} 13... Nfd7 {[%clk 0:01:42.5]}
14. Ndb5 {[%clk 0:02:40.6]} 14... cxb5 {[%clk 0:01:24.6]} 15. Nxb5 {[%clk
0:02:41.5]} 15... Qc5 {[%clk 0:01:14.9]} 16. Qxd6 {[%clk 0:02:39.1]} 16... a6
{[%clk 0:01:01.9]} 17. Qxc5 {[%clk 0:02:31.7]} 17... Nxc5 {[%clk 0:01:02.1]} 18.
Nc7 {[%clk 0:02:31]} 18... Rb8 {[%clk 0:01:01.4]} 19. Bf4 {[%clk 0:02:31.2]}
19... Ned3 {[%clk 0:00:55.9]} 20. Be3 {[%clk 0:02:23.6]} 20... b6 {[%clk
0:00:48.1]} 21. b3 {[%clk 0:02:15.1]} 21... Bf5 {[%clk 0:00:47.4]} 22. Nd5
{[%clk 0:02:14.2]} 22... Rfd8 {[%clk 0:00:44.7]} 23. Ne7+ {[%clk 0:02:13.6]} 1-0

[Event "Early-Titled-Tuesday-Blitz-March-12-2024"]
[Site "Chess.com"]
[Date "2024.03.12"]
[Round "1"]
[White "BogdanDeac"]
[Black "santosalberto1987"]
[Result "1-0"]
[WhiteElo "3063"]
[BlackElo "2564"]
[TimeControl "180+1"]
[EndTime "8:04:09 PDT"]
[Termination "BogdanDeac won by resignation"]

1. d4 {[%clk 0:03:00.9]} 1... Nf6 {[%clk 0:02:59.3]} 2. Nf3 {[%clk 0:02:59.6]}
2... d6 {[%clk 0:02:54.2]} 3. Nc3 {[%clk 0:02:58.3]} 3... Bf5 {[%clk 0:02:52.1]}
4. Nh4 {[%clk 0:02:57.5]} 4... Bg4 {[%clk 0:02:45.9]} 5. h3 {[%clk 0:02:55.4]}
5... Bh5 {[%clk 0:02:46.1]} 6. g4 {[%clk 0:02:54.9]} 6... Bg6 {[%clk 0:02:45.9]}
7. Bg2 {[%clk 0:02:52.7]} 7... c6 {[%clk 0:02:46]} 8. f4 {[%clk 0:02:46.6]} 8...
e6 {[%clk 0:02:39.6]} 9. O-O {[%clk 0:02:34.3]} 9... Nxg4 {[%clk 0:02:19.6]} 10.
Nxg6 {[%clk 0:02:33]} 10... hxg6 {[%clk 0:02:20.5]} 11. hxg4 {[%clk 0:02:32.3]}
11... Qh4 {[%clk 0:02:20.8]} 12. Rf3 {[%clk 0:02:32.5]} 12... Qxg4 {[%clk
0:02:15]} 13. e4 {[%clk 0:02:31.9]} 13... Nd7 {[%clk 0:02:12.2]} 14. Rh3 {[%clk
0:02:27.5]} 14... Qxd1+ {[%clk 0:02:00.7]} 15. Nxd1 {[%clk 0:02:25.7]} 15...
Rxh3 {[%clk 0:02:01.2]} 16. Bxh3 {[%clk 0:02:26]} 16... Nf6 {[%clk 0:02:02.1]}
17. Nf2 {[%clk 0:02:20.9]} 17... Be7 {[%clk 0:02:02]} 18. Bd2 {[%clk 0:02:13.2]}
18... Kd7 {[%clk 0:02:01.8]} 19. f5 {[%clk 0:02:11.2]} 19... gxf5 {[%clk
0:02:01.1]} 20. exf5 {[%clk 0:02:11.1]} 20... e5 {[%clk 0:01:56.5]} 21. dxe5
{[%clk 0:02:10.7]} 21... dxe5 {[%clk 0:01:57.1]} 22. Re1 {[%clk 0:02:11]} 22...
Bd6 {[%clk 0:01:56]} 23. Bg5 {[%clk 0:02:04.5]} 23... Rh8 {[%clk 0:01:53.7]} 24.
Kg2 {[%clk 0:02:04.4]} 24... Rh5 {[%clk 0:01:40]} 25. Bxf6 {[%clk 0:02:01.9]}
25... gxf6 {[%clk 0:01:40.9]} 26. Ne4 {[%clk 0:02:02]} 26... Be7 {[%clk
0:01:40.5]} 27. Bg4 {[%clk 0:01:57.4]} 27... Rh8 {[%clk 0:01:38.4]} 28. Rh1
{[%clk 0:01:56.8]} 28... Rxh1 {[%clk 0:01:31.6]} 29. Kxh1 {[%clk 0:01:56.8]}
29... c5 {[%clk 0:01:29.7]} 30. c4 {[%clk 0:01:52.7]} 30... Kc6 {[%clk
0:01:28.9]} 31. Bh5 {[%clk 0:01:52.3]} 31... b5 {[%clk 0:01:27]} 32. Bxf7 {[%clk
0:01:52]} 32... bxc4 {[%clk 0:01:26.9]} 33. Bxc4 {[%clk 0:01:52.1]} 1-0

[Event "Early-Titled-Tuesday-Blitz-March-12-2024"]
[Site "Chess.com"]
[Date "2024.03.12"]
[Round "1"]
[White "nekotyanof"]
[Black "remyrushbrooke"]
[Result "1-0"]
[WhiteElo "2649"]
[BlackElo "2251"]
[TimeControl "180+1"]
[EndTime "8:04:26 PDT"]
[Termination "nekotyanof won by checkmate"]

1. e4 {[%clk 0:03:00.9]} 1... e5 {[%clk 0:03:00.3]} 2. Nf3 {[%clk 0:02:57]} 2...
Nf6 {[%clk 0:03:00.7]} 3. d4 {[%clk 0:02:55.4]} 3... Nxe4 {[%clk 0:03:00.1]} 4.
dxe5 {[%clk 0:02:56.1]} 4... d5 {[%clk 0:02:57.7]} 5. exd6 {[%clk 0:02:55.5]}
5... Bxd6 {[%clk 0:02:56.8]} 6. Bd3 {[%clk 0:02:55.9]} 6... Nf6 {[%clk
0:02:53.2]} 7. O-O {[%clk 0:02:56.6]} 7... O-O {[%clk 0:02:53.6]} 8. Bg5 {[%clk
0:02:57.2]} 8... h6 {[%clk 0:02:52.8]} 9. Bh4 {[%clk 0:02:56.8]} 9... b6 {[%clk
0:02:43.3]} 10. Nc3 {[%clk 0:02:55.9]} 10... Bb7 {[%clk 0:02:41.9]} 11. Ne4
{[%clk 0:02:55.3]} 11... Be7 {[%clk 0:02:34.7]} 12. Bxf6 {[%clk 0:02:39.5]}
12... Bxf6 {[%clk 0:02:35.6]} 13. c3 {[%clk 0:02:40.1]} 13... Nd7 {[%clk
0:02:29]} 14. Qc2 {[%clk 0:02:30.3]} 14... Be7 {[%clk 0:02:24.9]} 15. Rad1
{[%clk 0:02:27.9]} 15... c5 {[%clk 0:02:16.6]} 16. Rfe1 {[%clk 0:02:23.8]} 16...
Qc7 {[%clk 0:02:14.3]} 17. Ng3 {[%clk 0:02:21.8]} 17... Bf6 {[%clk 0:02:12.6]}
18. Be4 {[%clk 0:02:11]} 18... Bxe4 {[%clk 0:02:08.9]} 19. Qxe4 {[%clk
0:02:11.9]} 19... Rad8 {[%clk 0:02:04]} 20. Nh5 {[%clk 0:02:11]} 20... Qc8
{[%clk 0:01:46.4]} 21. Qg4 {[%clk 0:02:08.9]} 21... Rfe8 {[%clk 0:01:41.7]} 22.
Rxe8+ {[%clk 0:02:06.1]} 22... Rxe8 {[%clk 0:01:42]} 23. Rxd7 {[%clk 0:02:01.4]}
23... Kh8 {[%clk 0:01:30.5]} 24. Nxf6 {[%clk 0:01:56.6]} 24... gxf6 {[%clk
0:01:31.4]} 25. h3 {[%clk 0:01:54.4]} 25... f5 {[%clk 0:01:27.8]} 26. Qxf5
{[%clk 0:01:51.5]} 26... Re6 {[%clk 0:01:27.9]} 27. Rxf7 {[%clk 0:01:50.4]}
27... Qe8 {[%clk 0:00:54.8]} 28. Qh7# {[%clk 0:01:50.4]} 1-0

[Event "Early-Titled-Tuesday-Blitz-March-12-2024"]
[Site "Chess.com"]
[Date "2024.03.12"]
[Round "1"]
[White "kushagramohan"]
[Black "RamonManon0g"]
[Result "1-0"]
[WhiteElo "2778"]
[BlackElo "2420"]
[TimeControl "180+1"]
[EndTime "8:04:53 PDT"]
[Termination "kushagramohan won by checkmate"]

1. e4 {[%clk 0:03:00.9]} 1... c5 {[%clk 0:02:50.9]} 2. Nf3 {[%clk 0:03:00.4]}
2... d6 {[%clk 0:02:47.9]} 3. d4 {[%clk 0:03:01]} 3... cxd4 {[%clk 0:02:48.8]}
4. Nxd4 {[%clk 0:03:01.9]} 4... Nf6 {[%clk 0:02:49]} 5. Nc3 {[%clk 0:03:02.6]}
5... a6 {[%clk 0:02:49.9]} 6. Bg5 {[%clk 0:03:02.8]} 6... e6 {[%clk 0:02:50.3]}
7. f4 {[%clk 0:03:03]} 7... Nbd7 {[%clk 0:02:41.1]} 8. Qe2 {[%clk 0:03:03.2]}
8... h6 {[%clk 0:02:37.5]} 9. Bh4 {[%clk 0:03:02.5]} 9... Be7 {[%clk 0:02:37.6]}
10. Bf2 {[%clk 0:02:50.5]} 10... O-O {[%clk 0:02:36.8]} 11. O-O-O {[%clk
0:02:49.5]} 11... Nc5 {[%clk 0:02:33.3]} 12. e5 {[%clk 0:02:47.1]} 12... dxe5
{[%clk 0:02:29.7]} 13. Nxe6 {[%clk 0:02:46.5]} 13... Bxe6 {[%clk 0:02:25.2]} 14.
Rxd8 {[%clk 0:02:46.2]} 14... Rfxd8 {[%clk 0:02:25.1]} 15. fxe5 {[%clk
0:02:44.7]} 15... Ng4 {[%clk 0:02:22.3]} 16. h3 {[%clk 0:02:30.5]} 16... Bg5+
{[%clk 0:02:18.1]} 17. Kb1 {[%clk 0:02:30.4]} 17... Nxf2 {[%clk 0:02:07.9]} 18.
Qxf2 {[%clk 0:02:30.9]} 18... Ne4 {[%clk 0:02:08.2]} 19. Qe1 {[%clk 0:02:25.2]}
19... Nxc3+ {[%clk 0:01:48.3]} 20. bxc3 {[%clk 0:02:26.1]} 20... Bd2 {[%clk
0:01:46.6]} 21. Qe4 {[%clk 0:02:24.3]} 21... Bxc3 {[%clk 0:01:24.9]} 22. Bd3
{[%clk 0:02:23.1]} 22... g6 {[%clk 0:01:25.3]} 23. Qe3 {[%clk 0:02:17.3]} 23...
Kh7 {[%clk 0:01:19.7]} 24. Bxg6+ {[%clk 0:02:16.8]} 24... Kxg6 {[%clk
0:01:14.6]} 25. Qxc3 {[%clk 0:02:17.7]} 25... Rac8 {[%clk 0:01:12]} 26. Qg3+
{[%clk 0:02:17.2]} 26... Kh7 {[%clk 0:01:10.6]} 27. Rf1 {[%clk 0:02:17.5]} 27...
Rd2 {[%clk 0:01:06.7]} 28. Qe3 {[%clk 0:02:06.8]} 28... Rd5 {[%clk 0:00:55.7]}
29. Rf6 {[%clk 0:02:04.5]} 29... Rcd8 {[%clk 0:00:30.6]} 30. Rxh6+ {[%clk
0:02:03.9]} 30... Kg7 {[%clk 0:00:24.8]} 31. Qg5+ {[%clk 0:02:04.8]} 31... Kf8
{[%clk 0:00:25]} 32. Rh8# {[%clk 0:02:05.3]} 1-0

[Event "Early-Titled-Tuesday-Blitz-March-12-2024"]
[Site "Chess.com"]
[Date "2024.03.12"]
[Round "1"]
[White "Msb2"]
[Black "KnobbedHornbill"]
[Result "1-0"]
[WhiteElo "3011"]
[BlackElo "2549"]
[TimeControl "180+1"]
[EndTime "8:05:04 PDT"]
[Termination "Msb2 won by resignation"]

1. d4 {[%clk 0:03:00.9]} 1... d5 {[%clk 0:03:00.2]} 2. c4 {[%clk 0:03:01.2]}
2... c6 {[%clk 0:03:00.9]} 3. Nf3 {[%clk 0:03:01.7]} 3... Nf6 {[%clk 0:03:01.2]}
4. Nc3 {[%clk 0:03:02.6]} 4... dxc4 {[%clk 0:02:59.7]} 5. e4 {[%clk 0:03:02.6]}
5... b5 {[%clk 0:02:59.2]} 6. Qc2 {[%clk 0:03:03.3]} 6... e6 {[%clk 0:02:57.3]}
7. Be2 {[%clk 0:03:02.7]} 7... Be7 {[%clk 0:02:57.6]} 8. O-O {[%clk 0:03:03.4]}
8... O-O {[%clk 0:02:57.7]} 9. e5 {[%clk 0:03:04.1]} 9... Nd5 {[%clk 0:02:57.2]}
10. Ne4 {[%clk 0:03:05]} 10... h6 {[%clk 0:02:53.9]} 11. b3 {[%clk 0:03:05.3]}
11... cxb3 {[%clk 0:02:52.8]} 12. axb3 {[%clk 0:03:06.2]} 12... Bb7 {[%clk
0:02:50.6]} 13. Bd2 {[%clk 0:03:06.2]} 13... a5 {[%clk 0:02:50]} 14. Qc1 {[%clk
0:03:06.6]} 14... f5 {[%clk 0:02:14.3]} 15. exf6 {[%clk 0:03:05.5]} 15... Nxf6
{[%clk 0:02:13.4]} 16. Nc5 {[%clk 0:03:05.3]} 16... Bc8 {[%clk 0:01:59.5]} 17.
Re1 {[%clk 0:03:02.8]} 17... Qd5 {[%clk 0:01:53.5]} 18. Bxa5 {[%clk 0:02:40.6]}
18... Na6 {[%clk 0:01:52]} 19. Nxa6 {[%clk 0:02:35.9]} 19... Rxa6 {[%clk
0:01:50.7]} 20. Qc2 {[%clk 0:02:33.9]} 20... Bd6 {[%clk 0:01:12.8]} 21. Bd3
{[%clk 0:02:22]} 21... Ng4 {[%clk 0:01:09.9]} 22. Be4 {[%clk 0:02:17.8]} 22...
Qh5 {[%clk 0:01:09.2]} 23. h3 {[%clk 0:02:18.4]} 23... Nf6 {[%clk 0:01:03.3]}
24. Bg6 {[%clk 0:02:16.7]} 24... Qd5 {[%clk 0:01:01.5]} 25. Bc3 {[%clk
0:02:08.9]} 25... Rxa1 {[%clk 0:01:00.5]} 26. Rxa1 {[%clk 0:02:09.8]} 26... b4
{[%clk 0:00:59]} 27. Bd2 {[%clk 0:02:07]} 27... c5 {[%clk 0:00:58.4]} 28. dxc5
{[%clk 0:02:06.5]} 28... Bxc5 {[%clk 0:00:58.2]} 29. Rd1 {[%clk 0:02:01.9]}
29... Rd8 {[%clk 0:00:54.3]} 30. Re1 {[%clk 0:01:56.2]} 30... Bb7 {[%clk
0:00:54.1]} 31. Re5 {[%clk 0:01:52.6]} 31... Qd6 {[%clk 0:00:42.8]} 32. Rxc5
{[%clk 0:01:40.2]} 32... Bxf3 {[%clk 0:00:42.5]} 33. gxf3 {[%clk 0:01:41.1]}
33... Qxd2 {[%clk 0:00:42]} 34. Qxd2 {[%clk 0:01:41]} 1-0

[Event "Early-Titled-Tuesday-Blitz-March-12-2024"]
[Site "Chess.com"]
[Date "2024.03.12"]
[Round "1"]
[White "PLAYER_2006_M"]
[Black "Ginzburg_Yakov"]
[Result "1-0"]
[WhiteElo "2995"]
[BlackElo "2546"]
[TimeControl "180+1"]
[EndTime "8:05:08 PDT"]
[Termination "PLAYER_2006_M won on time"]

1. e4 {[%clk 0:03:00.9]} 1... c5 {[%clk 0:02:57.9]} 2. Nf3 {[%clk 0:03:01]} 2...
e6 {[%clk 0:02:58]} 3. c3 {[%clk 0:03:00.3]} 3... d5 {[%clk 0:02:57.9]} 4. exd5
{[%clk 0:02:59.8]} 4... exd5 {[%clk 0:02:58.4]} 5. d4 {[%clk 0:02:59.7]} 5...
Nf6 {[%clk 0:02:58.4]} 6. Bd3 {[%clk 0:02:58.9]} 6... Be7 {[%clk 0:02:56.3]} 7.
O-O {[%clk 0:02:55.7]} 7... O-O {[%clk 0:02:51.5]} 8. dxc5 {[%clk 0:02:53.8]}
8... Bxc5 {[%clk 0:02:43.2]} 9. h3 {[%clk 0:02:53.6]} 9... h6 {[%clk 0:02:42.5]}
10. Nbd2 {[%clk 0:02:51.9]} 10... Nc6 {[%clk 0:02:40.9]} 11. Nb3 {[%clk
0:02:51.6]} 11... Bb6 {[%clk 0:02:40.8]} 12. Re1 {[%clk 0:02:50]} 12... Qd6
{[%clk 0:02:35.5]} 13. Be3 {[%clk 0:02:46.2]} 13... Bd7 {[%clk 0:01:59.3]} 14.
Bxb6 {[%clk 0:02:38.1]} 14... axb6 {[%clk 0:01:58.8]} 15. Nbd4 {[%clk
0:02:38.3]} 15... Rfe8 {[%clk 0:01:50.6]} 16. a3 {[%clk 0:02:36.9]} 16... Rxe1+
{[%clk 0:01:45]} 17. Qxe1 {[%clk 0:02:37.8]} 17... Re8 {[%clk 0:01:45.3]} 18.
Qd1 {[%clk 0:02:27.4]} 18... Ne4 {[%clk 0:01:24.9]} 19. Nb5 {[%clk 0:02:19.2]}
19... Qe7 {[%clk 0:01:08]} 20. Nc7 {[%clk 0:02:12]} 20... Qc5 {[%clk 0:00:28.6]}
21. Bxe4 {[%clk 0:02:06.8]} 21... dxe4 {[%clk 0:00:13.6]} 22. Nxe8 {[%clk
0:02:02.6]} 22... Bxe8 {[%clk 0:00:07.1]} 23. Nd4 {[%clk 0:02:02.1]} 1-0

[Event "Early-Titled-Tuesday-Blitz-March-12-2024"]
[Site "Chess.com"]
[Date "2024.03.12"]
[Round "1"]
[White "semchik73"]
[Black "Fighterman91"]
[Result "0-1"]
[WhiteElo "2417"]
[BlackElo "2769"]
[TimeControl "180+1"]
[EndTime "8:05:18 PDT"]
[Termination "Fighterman91 won by resignation"]

1. Nf3 {[%clk 0:02:59.7]} 1... c5 {[%clk 0:02:56.1]} 2. c4 {[%clk 0:02:58.3]}
2... Nc6 {[%clk 0:02:56.2]} 3. e3 {[%clk 0:02:58.7]} 3... Nf6 {[%clk 0:02:56]}
4. d4 {[%clk 0:02:59]} 4... cxd4 {[%clk 0:02:56.5]} 5. exd4 {[%clk 0:02:59.9]}
5... d5 {[%clk 0:02:57.1]} 6. Nc3 {[%clk 0:03:00.5]} 6... Bg4 {[%clk 0:02:57.2]}
7. cxd5 {[%clk 0:02:52.3]} 7... Nxd5 {[%clk 0:02:57.4]} 8. Bc4 {[%clk
0:02:50.8]} 8... e6 {[%clk 0:02:49.4]} 9. O-O {[%clk 0:02:47.3]} 9... Be7 {[%clk
0:02:48.4]} 10. Nxd5 {[%clk 0:02:37.7]} 10... exd5 {[%clk 0:02:47.8]} 11. Be2
{[%clk 0:02:37.6]} 11... O-O {[%clk 0:02:46]} 12. h3 {[%clk 0:02:37.6]} 12...
Be6 {[%clk 0:02:44.1]} 13. Bf4 {[%clk 0:02:32.7]} 13... Bf6 {[%clk 0:02:44.3]}
14. Rc1 {[%clk 0:02:29.9]} 14... Qb6 {[%clk 0:02:42]} 15. Bd6 {[%clk 0:02:21.1]}
15... Rfc8 {[%clk 0:02:34.6]} 16. Bc5 {[%clk 0:02:21.3]} 16... Qxb2 {[%clk
0:02:34.5]} 17. Rc2 {[%clk 0:02:12.1]} 17... Qxc2 {[%clk 0:02:29.9]} 18. Qxc2
{[%clk 0:02:11.5]} 18... Nxd4 {[%clk 0:02:30.4]} 19. Nxd4 {[%clk 0:02:03.6]}
19... Bxd4 {[%clk 0:02:30.7]} 20. Rc1 {[%clk 0:01:35.6]} 20... Bxc5 {[%clk
0:02:13.5]} 21. Qd2 {[%clk 0:01:28.7]} 21... b6 {[%clk 0:02:09.3]} 22. Bf3
{[%clk 0:01:27]} 22... Rd8 {[%clk 0:02:09]} 23. Re1 {[%clk 0:01:20]} 23... Rd6
{[%clk 0:02:09]} 24. Qf4 {[%clk 0:01:18.4]} 24... Rad8 {[%clk 0:02:09.1]} 25.
Re5 {[%clk 0:01:07.8]} 25... d4 {[%clk 0:02:08.6]} 26. Be4 {[%clk 0:00:59.5]}
26... d3 {[%clk 0:01:54.6]} 27. Rh5 {[%clk 0:00:58.9]} 27... d2 {[%clk
0:01:16.1]} 28. Bxh7+ {[%clk 0:00:55]} 28... Kf8 {[%clk 0:01:16.8]} 29. Bc2
{[%clk 0:00:53.2]} 29... d1=Q+ {[%clk 0:01:17.2]} 30. Bxd1 {[%clk 0:00:51.7]}
30... Rxd1+ {[%clk 0:01:18.1]} 31. Kh2 {[%clk 0:00:52.2]} 31... Bd6 {[%clk
0:01:18.6]} 32. Rh8+ {[%clk 0:00:51.8]} 32... Ke7 {[%clk 0:01:18.8]} 33. Qxd6+
{[%clk 0:00:52.2]} 33... R1xd6 {[%clk 0:01:17.2]} 0-1